[Event "Titled Tuesday Blitz May 10 Early 2022"]
[White "Csonka, Balazs"]
[Black "Starozhilov, Leonid"]
[WhiteFideId "742910"]
[BlackFideId "14106752"]
[WhiteElo "2404"]
[BlackElo "2414"]
[Result "0-1"]
[Round "07"]
[TimeControl "180+1"]
[Date "2022.05.10"]
[WhiteClock "0:00:02"]
[BlackClock "0:00:07"]

1. e4 {[%clk 0:03:00]}  Nc6 {[%clk 0:02:59]} 2. Nc3 {[%clk 0:02:57]}  d6 {[%clk 0:03:00]} 3. d4 {[%clk 0:02:55]}  Nf6 {[%clk 0:02:59]} 4. Bb5 {[%clk 0:02:42]}  a6 {[%clk 0:02:57]} 5. Bxc6+ {[%clk 0:02:38]}  bxc6 {[%clk 0:02:58]} 6. Nge2 {[%clk 0:02:33]}  g6 {[%clk 0:02:58]} 7. f3 {[%clk 0:02:29]}  Bg7 {[%clk 0:02:56]} 8. Be3 {[%clk 0:02:29]}  Rb8 {[%clk 0:02:55]} 9. b3 {[%clk 0:02:29]}  Nd7 {[%clk 0:02:54]} 10. Qd2 {[%clk 0:02:26]}  c5 {[%clk 0:02:54]} 11. Bh6 {[%clk 0:02:20]}  Bxh6 {[%clk 0:02:50]} 12. Qxh6 {[%clk 0:02:19]}  cxd4 {[%clk 0:02:31]} 13. Qg7 {[%clk 0:01:58]}  Rf8 {[%clk 0:02:29]} 14. Nxd4 {[%clk 0:01:58]}  Bb7 {[%clk 0:02:30]} 15. Qxh7 {[%clk 0:01:44]}  c5 {[%clk 0:02:30]} 16. Nde2 {[%clk 0:01:42]}  Qa5 {[%clk 0:02:29]} 17. Qh6 {[%clk 0:01:36]}  Ne5 {[%clk 0:02:24]} 18. Qd2 {[%clk 0:01:34]}  Rh8 {[%clk 0:02:15]} 19. Nf4 {[%clk 0:01:29]}  Bc6 {[%clk 0:02:09]} 20. Nd3 {[%clk 0:01:15]}  c4 {[%clk 0:01:55]} 21. Nxe5 {[%clk 0:01:07]}  Qxe5 {[%clk 0:01:55]} 22. O-O-O {[%clk 0:00:56]}  Rxh2 {[%clk 0:01:46]} 23. f4 {[%clk 0:00:47]}  Qh5 {[%clk 0:01:43]} 24. g4 {[%clk 0:00:32]}  Rxd2 {[%clk 0:01:35]} 25. gxh5 {[%clk 0:00:32]}  Rxd1+ {[%clk 0:01:34]} 26. Kxd1 {[%clk 0:00:33]}  cxb3 {[%clk 0:01:31]} 27. axb3 {[%clk 0:00:26]}  gxh5 {[%clk 0:01:30]} 28. Rxh5 {[%clk 0:00:27]}  Kd7 {[%clk 0:01:30]} 29. Rh7 {[%clk 0:00:10]}  f6 {[%clk 0:01:30]} 30. Kd2 {[%clk 0:00:07]}  Rg8 {[%clk 0:01:29]} 31. Rh2 {[%clk 0:00:04]}  Rg3 {[%clk 0:01:28]} 32. Rf2 {[%clk 0:00:04]}  a5 {[%clk 0:01:27]} 33. Nd5 {[%clk 0:00:02]}  f5 {[%clk 0:01:19]} 34. Nc3 {[%clk 0:00:01]}  fxe4 {[%clk 0:01:17]} 35. Re2 {[%clk 0:00:02]}  d5 {[%clk 0:01:17]} 36. Nd1 {[%clk 0:00:02]}  d4 {[%clk 0:01:17]} 37. c3 {[%clk 0:00:02]}  a4 {[%clk 0:00:41]} 38. bxa4 {[%clk 0:00:02]}  d3 {[%clk 0:00:41]} 39. Re3 {[%clk 0:00:02]}  Rg2+ {[%clk 0:00:41]} 40. Ke1 {[%clk 0:00:02]}  Rg4 {[%clk 0:00:06]} 41. Nf2 {[%clk 0:00:01]}  Rxf4 {[%clk 0:00:06]} 42. Nxd3 {[%clk 0:00:01]}  exd3 {[%clk 0:00:06]} 43. Rxd3+ {[%clk 0:00:02]}  Kc7 {[%clk 0:00:06]} 44. a5 {[%clk 0:00:02]}  Ra4 {[%clk 0:00:06]} 45. Re3 {[%clk 0:00:03]}  Kd7 {[%clk 0:00:06]} 46. Rd3+ {[%clk 0:00:03]}  Ke8 {[%clk 0:00:06]} 47. Kd2 {[%clk 0:00:03]}  Rxa5 {[%clk 0:00:07]} 48. Rh3 {[%clk 0:00:03]}  Kd7 {[%clk 0:00:06]} 49. Kd3 {[%clk 0:00:03]}  Ra1 {[%clk 0:00:06]} 50. Rh7 {[%clk 0:00:03]}  Re1 {[%clk 0:00:05]} 51. Kd2 {[%clk 0:00:03]}  Re6 {[%clk 0:00:05]} 52. Kd3 {[%clk 0:00:03]}  Rf6 {[%clk 0:00:06]} 53. Kd4 {[%clk 0:00:04]}  Kd6 {[%clk 0:00:07]} 54. Rh5 {[%clk 0:00:03]}  Rf4+ {[%clk 0:00:07]} 55. Ke3 {[%clk 0:00:03]}  Rf3+ {[%clk 0:00:07]} 56. Kd4 {[%clk 0:00:02]}  Rg3 {[%clk 0:00:07]} 57. Rh6+ {[%clk 0:00:02]}  e6 {[%clk 0:00:08]} 58. c4 {[%clk 0:00:03]}  Rg4+ {[%clk 0:00:05]} 59. Kc3 {[%clk 0:00:03]}  Bd7 {[%clk 0:00:04]} 60. Rh5 {[%clk 0:00:03]}  e5 {[%clk 0:00:03]} 61. Kd3 {[%clk 0:00:04]}  Be6 {[%clk 0:00:03]} 62. c5+ {[%clk 0:00:03]}  Kd5 {[%clk 0:00:03]} 63. c6 {[%clk 0:00:03]}  Rd4+ {[%clk 0:00:04]} 64. Ke3 {[%clk 0:00:03]}  Rc4 {[%clk 0:00:04]} 65. c7 {[%clk 0:00:01]}  Rxc7 {[%clk 0:00:05]} 66. Rh6 {[%clk 0:00:02]}  Rc3+ {[%clk 0:00:05]} 67. Kd2 {[%clk 0:00:02]}  Rc4 {[%clk 0:00:05]} 68. Rh5 {[%clk 0:00:02]}  Rd4+ {[%clk 0:00:06]} 69. Ke3 {[%clk 0:00:02]}  Rf4 {[%clk 0:00:07]} 70. Rg5 {[%clk 0:00:02]}  Rf5 {[%clk 0:00:07]} 71. Rg6 {[%clk 0:00:02]}  Rf7 {[%clk 0:00:08]} 72. Rg8 {[%clk 0:00:02]}  Rd7 {[%clk 0:00:08]} 73. Re8 {[%clk 0:00:02]}  Rc7 {[%clk 0:00:08]} 74. Rb8 {[%clk 0:00:02]}  Rc3+ {[%clk 0:00:07]} 75. Kd2 {[%clk 0:00:02]}  Rh3 {[%clk 0:00:07]} 76. Rb4 {[%clk 0:00:02]}  e4 {[%clk 0:00:07]} 77. Rb5+ {[%clk 0:00:02]}  Kd4 {[%clk 0:00:07]} 78. Rb4+ {[%clk 0:00:02]}  Bc4 {[%clk 0:00:08]} 79. Ke1 {[%clk 0:00:02]}  e3 {[%clk 0:00:07]} 0-1


[Site "https://www.chess.com"]

[Event "Titled Tuesday Blitz May 10 Early 2022"]
[White "De Arruda, Leandro Formes"]
[Black "Dmitrenko, Viktor"]
[WhiteFideId "22722009"]
[BlackFideId "14110270"]
[WhiteElo "1852"]
[BlackElo "2218"]
[Result "0-1"]
[Round "07"]
[TimeControl "180+1"]
[Date "2022.05.11"]
[WhiteClock "0:00:03"]
[BlackClock "0:00:06"]

1. d4 {[%clk 0:03:00]}  e6 {[%clk 0:02:58]} 2. e3 {[%clk 0:03:00]}  c5 {[%clk 0:02:56]} 3. Nf3 {[%clk 0:03:01]}  d6 {[%clk 0:02:54]} 4. Bd3 {[%clk 0:03:01]}  b6 {[%clk 0:02:53]} 5. Nbd2 {[%clk 0:03:01]}  Bb7 {[%clk 0:02:53]} 6. O-O {[%clk 0:03:02]}  Nd7 {[%clk 0:02:53]} 7. b3 {[%clk 0:03:01]}  cxd4 {[%clk 0:02:52]} 8. exd4 {[%clk 0:03:00]}  g6 {[%clk 0:02:52]} 9. Bb2 {[%clk 0:02:57]}  Bg7 {[%clk 0:02:52]} 10. Rb1 {[%clk 0:02:53]}  Ngf6 {[%clk 0:02:49]} 11. Re1 {[%clk 0:02:51]}  O-O {[%clk 0:02:47]} 12. c4 {[%clk 0:02:51]}  e5 {[%clk 0:02:41]} 13. dxe5 {[%clk 0:02:45]}  Nxe5 {[%clk 0:02:40]} 14. Bxe5 {[%clk 0:02:43]}  dxe5 {[%clk 0:02:41]} 15. Nxe5 {[%clk 0:02:43]}  Nh5 {[%clk 0:02:31]} 16. Ndf3 {[%clk 0:02:35]}  Re8 {[%clk 0:02:28]} 17. Bc2 {[%clk 0:02:25]}  Qc7 {[%clk 0:02:16]} 18. Qd7 {[%clk 0:02:08]}  Qxd7 {[%clk 0:02:09]} 19. Nxd7 {[%clk 0:02:08]}  Nf4 {[%clk 0:02:03]} 20. Nde5 {[%clk 0:01:50]}  Nxg2 {[%clk 0:01:23]} 21. Kxg2 {[%clk 0:01:33]}  Rxe5 {[%clk 0:01:23]} 22. Rxe5 {[%clk 0:01:29]}  Bxe5 {[%clk 0:01:24]} 23. Re1 {[%clk 0:01:29]}  Bf6 {[%clk 0:01:17]} 24. Be4 {[%clk 0:01:27]}  Bxe4 {[%clk 0:01:15]} 25. Rxe4 {[%clk 0:01:28]}  Rd8 {[%clk 0:01:15]} 26. h4 {[%clk 0:01:20]}  h5 {[%clk 0:01:13]} 27. Rf4 {[%clk 0:01:17]}  Kg7 {[%clk 0:01:11]} 28. Re4 {[%clk 0:01:11]}  Rd3 {[%clk 0:01:09]} 29. Re2 {[%clk 0:00:57]}  Kf8 {[%clk 0:00:59]} 30. Rc2 {[%clk 0:00:55]}  Ke7 {[%clk 0:00:52]} 31. c5 {[%clk 0:00:54]}  Rc3 {[%clk 0:00:47]} 32. Re2+ {[%clk 0:00:51]}  Kd7 {[%clk 0:00:47]} 33. cxb6 {[%clk 0:00:52]}  axb6 {[%clk 0:00:46]} 34. Re4 {[%clk 0:00:40]}  b5 {[%clk 0:00:43]} 35. Rb4 {[%clk 0:00:22]}  Rc2 {[%clk 0:00:41]} 36. Rxb5 {[%clk 0:00:19]}  Rxa2 {[%clk 0:00:40]} 37. Rb7+ {[%clk 0:00:15]}  Ke6 {[%clk 0:00:34]} 38. b4 {[%clk 0:00:14]}  Rb2 {[%clk 0:00:28]} 39. b5 {[%clk 0:00:14]}  Bd8 {[%clk 0:00:27]} 40. Nd4+ {[%clk 0:00:09]}  Kf6 {[%clk 0:00:24]} 41. Nc6 {[%clk 0:00:09]}  Rd2 {[%clk 0:00:22]} 42. Nxd8 {[%clk 0:00:05]}  Rxd8 {[%clk 0:00:21]} 43. Rb6+ {[%clk 0:00:05]}  Kf5 {[%clk 0:00:20]} 44. Rb7 {[%clk 0:00:05]}  f6 {[%clk 0:00:20]} 45. b6 {[%clk 0:00:05]}  Rd4 {[%clk 0:00:20]} 46. Re7 {[%clk 0:00:04]}  Rb4 {[%clk 0:00:20]} 47. b7 {[%clk 0:00:05]}  g5 {[%clk 0:00:18]} 48. hxg5 {[%clk 0:00:04]}  fxg5 {[%clk 0:00:19]} 49. Rh7 {[%clk 0:00:05]}  Kg4 {[%clk 0:00:18]} 50. Rf7 {[%clk 0:00:04]}  Rb2 {[%clk 0:00:17]} 51. Rh7 {[%clk 0:00:04]}  h4 {[%clk 0:00:17]} 52. Rg7 {[%clk 0:00:02]}  h3+ {[%clk 0:00:16]} 53. Kg1 {[%clk 0:00:02]}  Rb1+ {[%clk 0:00:16]} 54. Kh2 {[%clk 0:00:02]}  Rb2 {[%clk 0:00:16]} 55. Kg1 {[%clk 0:00:02]}  Rb1+ {[%clk 0:00:16]} 56. Kh2 {[%clk 0:00:02]}  Rb3 {[%clk 0:00:13]} 57. Kg1 {[%clk 0:00:02]}  Kh4 {[%clk 0:00:11]} 58. Kh2 {[%clk 0:00:02]}  g4 {[%clk 0:00:08]} 59. Kg1 {[%clk 0:00:03]}  Rb2 {[%clk 0:00:08]} 60. Kh2 {[%clk 0:00:03]}  Rxf2+ {[%clk 0:00:07]} 61. Kg1 {[%clk 0:00:03]}  Rb2 {[%clk 0:00:07]} 62. Rh7+ {[%clk 0:00:03]}  Kg3 {[%clk 0:00:07]} 63. Kf1 {[%clk 0:00:03]}  Rb1+ {[%clk 0:00:07]} 64. Ke2 {[%clk 0:00:03]}  h2 {[%clk 0:00:07]} 65. Kd2 {[%clk 0:00:03]}  Rxb7 {[%clk 0:00:06]} 0-1


[Site "https://www.chess.com"]

[Event "Titled Tuesday Blitz May 10 Early 2022"]
[White "Demin, Vladimir"]
[Black "Arabidze, Meri"]
[WhiteFideId "4167457"]
[BlackFideId "13604040"]
[WhiteElo "2459"]
[BlackElo "2335"]
[Result "0-1"]
[Round "07"]
[TimeControl "180+1"]
[Date "2022.05.11"]
[WhiteClock "0:00:04"]
[BlackClock "0:00:22"]

1. d4 {[%clk 0:02:58]}  d5 {[%clk 0:02:57]} 2. Nc3 {[%clk 0:02:58]}  c6 {[%clk 0:02:55]} 3. Bf4 {[%clk 0:02:57]}  Nf6 {[%clk 0:02:51]} 4. e3 {[%clk 0:02:54]}  Bf5 {[%clk 0:02:46]} 5. f3 {[%clk 0:02:53]}  Bg6 {[%clk 0:02:46]} 6. g4 {[%clk 0:02:51]}  h5 {[%clk 0:02:40]} 7. g5 {[%clk 0:02:50]}  Ng8 {[%clk 0:02:36]} 8. e4 {[%clk 0:02:47]}  e6 {[%clk 0:02:35]} 9. Bg2 {[%clk 0:02:34]}  Bd6 {[%clk 0:02:30]} 10. Qd2 {[%clk 0:02:08]}  Ne7 {[%clk 0:02:29]} 11. O-O-O {[%clk 0:02:03]}  Na6 {[%clk 0:02:28]} 12. Nge2 {[%clk 0:01:58]}  b5 {[%clk 0:02:13]} 13. Bxd6 {[%clk 0:01:55]}  Qxd6 {[%clk 0:02:14]} 14. Qf4 {[%clk 0:01:55]}  Qxf4+ {[%clk 0:02:02]} 15. Nxf4 {[%clk 0:01:55]}  h4 {[%clk 0:02:03]} 16. Rhe1 {[%clk 0:01:43]}  Nc7 {[%clk 0:01:51]} 17. Bh3 {[%clk 0:01:00]}  Rd8 {[%clk 0:01:42]} 18. Bg4 {[%clk 0:00:27]}  a6 {[%clk 0:01:41]} 19. a3 {[%clk 0:00:26]}  Na8 {[%clk 0:01:32]} 20. exd5 {[%clk 0:00:22]}  cxd5 {[%clk 0:01:30]} 21. Bxe6 {[%clk 0:00:11]}  fxe6 {[%clk 0:01:26]} 22. Rxe6 {[%clk 0:00:11]}  Bf5 {[%clk 0:01:10]} 23. Rxa6 {[%clk 0:00:11]}  O-O {[%clk 0:00:57]} 24. Re1 {[%clk 0:00:11]}  Rd7 {[%clk 0:00:38]} 25. Nxb5 {[%clk 0:00:08]}  Nc7 {[%clk 0:00:37]} 26. Nxc7 {[%clk 0:00:07]}  Rxc7 {[%clk 0:00:38]} 27. g6 {[%clk 0:00:04]}  Rxc2+ {[%clk 0:00:35]} 28. Kd1 {[%clk 0:00:04]}  Rc7 {[%clk 0:00:22]} 0-1


[Site "https://www.chess.com"]

[Event "Titled Tuesday Blitz May 10 Early 2022"]
[White "Devaev, Alexander"]
[Black "Arias, Juan Cruz"]
[WhiteFideId "4169395"]
[BlackFideId "118540"]
[WhiteElo "2185"]
[BlackElo "2091"]
[Result "0-1"]
[Round "07"]
[TimeControl "180+1"]
[Date "2022.05.11"]
[WhiteClock "0:00:09"]
[BlackClock "0:02:50"]

1. d4 {[%clk 0:02:55]}  Nf6 {[%clk 0:02:59]} 2. c4 {[%clk 0:02:55]}  c5 {[%clk 0:02:56]} 3. d5 {[%clk 0:02:55]}  e5 {[%clk 0:02:57]} 4. Nc3 {[%clk 0:02:55]}  d6 {[%clk 0:02:57]} 5. e4 {[%clk 0:02:55]}  Nbd7 {[%clk 0:02:58]} 6. h3 {[%clk 0:02:55]}  Be7 {[%clk 0:02:58]} 7. Nf3 {[%clk 0:02:56]}  O-O {[%clk 0:02:59]} 8. Be3 {[%clk 0:02:51]}  Ne8 {[%clk 0:03:00]} 9. Be2 {[%clk 0:02:49]}  Rb8 {[%clk 0:03:00]} 10. a3 {[%clk 0:02:46]}  a6 {[%clk 0:03:00]} 11. b4 {[%clk 0:02:46]}  b6 {[%clk 0:03:00]} 12. Qd2 {[%clk 0:02:44]}  g6 {[%clk 0:03:00]} 13. g4 {[%clk 0:02:44]}  Ng7 {[%clk 0:03:00]} 14. Rg1 {[%clk 0:02:41]}  Kh8 {[%clk 0:03:01]} 15. Bh6 {[%clk 0:02:41]}  Nf6 {[%clk 0:03:00]} 16. Qc2 {[%clk 0:01:35]}  Ng8 {[%clk 0:03:00]} 17. Bd2 {[%clk 0:01:35]}  f5 {[%clk 0:02:59]} 18. gxf5 {[%clk 0:01:34]}  gxf5 {[%clk 0:03:00]} 19. Ng5 {[%clk 0:00:57]}  f4 {[%clk 0:02:58]} 20. h4 {[%clk 0:00:48]}  Bd7 {[%clk 0:02:58]} 21. Bg4 {[%clk 0:00:39]}  Nf6 {[%clk 0:02:58]} 22. Bxd7 {[%clk 0:00:39]}  Qxd7 {[%clk 0:02:58]} 23. Qd1 {[%clk 0:00:20]}  h6 {[%clk 0:02:50]} 24. Nf3 {[%clk 0:00:16]}  cxb4 {[%clk 0:02:50]} 25. axb4 {[%clk 0:00:15]}  Rfc8 {[%clk 0:02:51]} 26. Qe2 {[%clk 0:00:15]}  b5 {[%clk 0:02:51]} 27. cxb5 {[%clk 0:00:14]}  axb5 {[%clk 0:02:50]} 28. Ra5 {[%clk 0:00:12]}  Rc4 {[%clk 0:02:51]} 29. Rxb5 {[%clk 0:00:09]}  Rxb4 {[%clk 0:02:50]} 30. Qc4 {[%clk 0:00:09]}  Rxc4 {[%clk 0:02:50]} 0-1


[Site "https://www.chess.com"]

[Event "Titled Tuesday Blitz May 10 Early 2022"]
[White "Dubov, Daniil"]
[Black "Oganian, Miran"]
[WhiteFideId "24126055"]
[BlackFideId "4122488"]
[WhiteElo "2791"]
[BlackElo "2357"]
[Result "1-0"]
[Round "07"]
[TimeControl "180+1"]
[Date "2022.05.10"]
[WhiteClock "0:00:04"]
[BlackClock "0:00:05"]

1. d4 {[%clk 0:03:00]}  d5 {[%clk 0:02:59]} 2. Nf3 {[%clk 0:03:01]}  Nf6 {[%clk 0:02:59]} 3. c4 {[%clk 0:03:02]}  e6 {[%clk 0:02:59]} 4. g3 {[%clk 0:03:02]}  dxc4 {[%clk 0:02:56]} 5. Bg2 {[%clk 0:03:02]}  a6 {[%clk 0:02:56]} 6. O-O {[%clk 0:03:01]}  Nc6 {[%clk 0:02:55]} 7. Nc3 {[%clk 0:03:00]}  Rb8 {[%clk 0:02:54]} 8. e4 {[%clk 0:02:39]}  Be7 {[%clk 0:02:54]} 9. d5 {[%clk 0:02:37]}  exd5 {[%clk 0:02:54]} 10. exd5 {[%clk 0:02:37]}  Nb4 {[%clk 0:02:53]} 11. Ne5 {[%clk 0:02:37]}  Bf5 {[%clk 0:02:40]} 12. Nxc4 {[%clk 0:02:32]}  Bd3 {[%clk 0:02:20]} 13. b3 {[%clk 0:02:16]}  Bxf1 {[%clk 0:02:17]} 14. Kxf1 {[%clk 0:02:17]}  a5 {[%clk 0:02:08]} 15. a3 {[%clk 0:01:47]}  Na6 {[%clk 0:02:07]} 16. Be3 {[%clk 0:01:37]}  O-O {[%clk 0:02:03]} 17. Nxa5 {[%clk 0:01:37]}  c6 {[%clk 0:01:54]} 18. b4 {[%clk 0:01:37]}  cxd5 {[%clk 0:01:53]} 19. Nxd5 {[%clk 0:01:37]}  Nxd5 {[%clk 0:01:54]} 20. Qxd5 {[%clk 0:01:37]}  Qxd5 {[%clk 0:01:34]} 21. Bxd5 {[%clk 0:01:38]}  Bf6 {[%clk 0:01:32]} 22. Rb1 {[%clk 0:01:36]}  b5 {[%clk 0:01:10]} 23. Bb7 {[%clk 0:01:27]}  Nc7 {[%clk 0:00:26]} 24. Bf4 {[%clk 0:01:25]}  Rxb7 {[%clk 0:00:26]} 25. Nxb7 {[%clk 0:01:24]}  Nd5 {[%clk 0:00:27]} 26. Bd6 {[%clk 0:00:43]}  Ra8 {[%clk 0:00:27]} 27. Na5 {[%clk 0:00:40]}  Nb6 {[%clk 0:00:24]} 28. Rc1 {[%clk 0:00:26]}  Na4 {[%clk 0:00:23]} 29. Rc7 {[%clk 0:00:22]}  Bb2 {[%clk 0:00:21]} 30. Rb7 {[%clk 0:00:22]}  Bxa3 {[%clk 0:00:09]} 31. Rxb5 {[%clk 0:00:22]}  h6 {[%clk 0:00:08]} 32. Nc6 {[%clk 0:00:19]}  Nc3 {[%clk 0:00:05]} 33. Rb7 {[%clk 0:00:17]}  Ne4 {[%clk 0:00:03]} 34. Be7 {[%clk 0:00:17]}  Kh7 {[%clk 0:00:03]} 35. b5 {[%clk 0:00:09]}  Bxe7 {[%clk 0:00:02]} 36. Rxe7 {[%clk 0:00:09]}  Ra1+ {[%clk 0:00:02]} 37. Kg2 {[%clk 0:00:08]}  f5 {[%clk 0:00:03]} 38. Nd4 {[%clk 0:00:06]}  Nd6 {[%clk 0:00:01]} 39. Rd7 {[%clk 0:00:05]}  Ne4 {[%clk 0:00:01]} 40. Nxf5 {[%clk 0:00:05]}  Kg6 {[%clk 0:00:02]} 41. Nh4+ {[%clk 0:00:05]}  Kf6 {[%clk 0:00:02]} 42. Rd4 {[%clk 0:00:05]}  Nc5 {[%clk 0:00:01]} 43. Rb4 {[%clk 0:00:04]}  Nb7 {[%clk 0:00:02]} 44. Nf3 {[%clk 0:00:03]}  g5 {[%clk 0:00:02]} 45. Rc4 {[%clk 0:00:03]}  Nd6 {[%clk 0:00:02]} 46. Rc6 {[%clk 0:00:04]}  Ke7 {[%clk 0:00:02]} 47. Rc7+ {[%clk 0:00:04]}  Ke6 {[%clk 0:00:03]} 48. Rh7 {[%clk 0:00:04]}  Nf5 {[%clk 0:00:02]} 49. g4 {[%clk 0:00:04]}  Nd6 {[%clk 0:00:02]} 50. Rxh6+ {[%clk 0:00:03]}  Kd5 {[%clk 0:00:03]} 51. Nxg5 {[%clk 0:00:04]}  Rb1 {[%clk 0:00:03]} 52. Rh5 {[%clk 0:00:04]}  Kd4 {[%clk 0:00:03]} 53. Nf3+ {[%clk 0:00:04]}  Kc4 {[%clk 0:00:02]} 54. Re5 {[%clk 0:00:04]}  Nf7 {[%clk 0:00:02]} 55. Rf5 {[%clk 0:00:04]}  Nd6 {[%clk 0:00:03]} 56. Rf4+ {[%clk 0:00:04]}  Kd5 {[%clk 0:00:03]} 57. h4 {[%clk 0:00:05]}  Nc4 {[%clk 0:00:03]} 58. h5 {[%clk 0:00:05]}  Rb2 {[%clk 0:00:03]} 59. h6 {[%clk 0:00:05]}  Ne3+ {[%clk 0:00:04]} 60. Kg3 {[%clk 0:00:05]}  Nf1+ {[%clk 0:00:04]} 61. Kh4 {[%clk 0:00:05]}  Rxf2 {[%clk 0:00:04]} 62. h7 {[%clk 0:00:05]}  Nd2 {[%clk 0:00:04]} 63. h8=Q {[%clk 0:00:04]}  Nxf3+ {[%clk 0:00:04]} 64. Rxf3 {[%clk 0:00:04]}  Rh2+ {[%clk 0:00:04]} 65. Rh3 {[%clk 0:00:03]}  Rxh3+ {[%clk 0:00:05]} 66. Kxh3 {[%clk 0:00:04]} 1-0


[Site "https://www.chess.com"]

[Event "Titled Tuesday Blitz May 10 Early 2022"]
[White "Estrada Nieto, Julian"]
[Black "Simonovic, Miroslav"]
[WhiteFideId "5101018"]
[BlackFideId "919152"]
[WhiteElo "2252"]
[BlackElo "2043"]
[Result "0-1"]
[Round "07"]
[TimeControl "180+1"]
[Date "2022.05.11"]
[WhiteClock "0:00:18"]
[BlackClock "0:00:06"]

1. e4 {[%clk 0:03:00]}  c5 {[%clk 0:02:59]} 2. Nf3 {[%clk 0:03:00]}  Nc6 {[%clk 0:02:59]} 3. Bb5 {[%clk 0:03:00]}  g6 {[%clk 0:02:58]} 4. Bxc6 {[%clk 0:03:00]}  dxc6 {[%clk 0:02:59]} 5. d3 {[%clk 0:03:00]}  Bg7 {[%clk 0:03:00]} 6. h3 {[%clk 0:03:01]}  e5 {[%clk 0:03:00]} 7. Be3 {[%clk 0:02:59]}  b6 {[%clk 0:02:59]} 8. a4 {[%clk 0:02:59]}  h6 {[%clk 0:02:56]} 9. Qd2 {[%clk 0:02:55]}  Ne7 {[%clk 0:02:54]} 10. O-O {[%clk 0:02:49]}  Be6 {[%clk 0:02:54]} 11. Na3 {[%clk 0:02:47]}  f5 {[%clk 0:02:51]} 12. Qc3 {[%clk 0:02:44]}  Qc7 {[%clk 0:02:35]} 13. Nc4 {[%clk 0:02:42]}  f4 {[%clk 0:02:04]} 14. Bxf4 {[%clk 0:02:37]}  Bxc4 {[%clk 0:01:59]} 15. dxc4 {[%clk 0:02:37]}  exf4 {[%clk 0:01:36]} 16. Qxg7 {[%clk 0:02:35]}  O-O-O {[%clk 0:01:34]} 17. Rfd1 {[%clk 0:02:25]}  g5 {[%clk 0:01:29]} 18. Qe5 {[%clk 0:02:18]}  Qxe5 {[%clk 0:01:15]} 19. Nxe5 {[%clk 0:02:18]}  Rd4 {[%clk 0:01:16]} 20. Rxd4 {[%clk 0:02:05]}  cxd4 {[%clk 0:01:17]} 21. b4 {[%clk 0:01:54]}  Kc7 {[%clk 0:00:42]} 22. Rd1 {[%clk 0:01:51]}  c5 {[%clk 0:00:37]} 23. bxc5 {[%clk 0:01:50]}  bxc5 {[%clk 0:00:38]} 24. Rb1 {[%clk 0:01:46]}  a6 {[%clk 0:00:20]} 25. Kf1 {[%clk 0:01:38]}  Re8 {[%clk 0:00:19]} 26. Nd3 {[%clk 0:01:35]}  Kc6 {[%clk 0:00:18]} 27. a5 {[%clk 0:01:30]}  Nc8 {[%clk 0:00:18]} 28. Rb8 {[%clk 0:01:27]}  Nd6 {[%clk 0:00:17]} 29. Rxe8 {[%clk 0:01:26]}  Nxe8 {[%clk 0:00:18]} 30. Ke2 {[%clk 0:01:21]}  Nd6 {[%clk 0:00:18]} 31. Ne5+ {[%clk 0:01:21]}  Kc7 {[%clk 0:00:17]} 32. Kd3 {[%clk 0:01:22]}  Nb7 {[%clk 0:00:13]} 33. Nf7 {[%clk 0:01:21]}  Nxa5 {[%clk 0:00:12]} 34. Nxh6 {[%clk 0:01:21]}  Nc6 {[%clk 0:00:12]} 35. c3 {[%clk 0:00:57]}  Ne5+ {[%clk 0:00:11]} 36. Kc2 {[%clk 0:00:57]}  d3+ {[%clk 0:00:09]} 37. Kb3 {[%clk 0:00:47]}  a5 {[%clk 0:00:08]} 38. Nf5 {[%clk 0:00:37]}  a4+ {[%clk 0:00:08]} 39. Kb2 {[%clk 0:00:28]}  a3+ {[%clk 0:00:07]} 40. Kxa3 {[%clk 0:00:22]}  d2 {[%clk 0:00:07]} 41. Ne7 {[%clk 0:00:22]}  d1=Q {[%clk 0:00:06]} 42. Nd5+ {[%clk 0:00:23]}  Kd6 {[%clk 0:00:06]} 43. Nf6 {[%clk 0:00:19]}  Nxc4+ {[%clk 0:00:06]} 44. Ka2 {[%clk 0:00:18]}  Qc2+ {[%clk 0:00:06]} 0-1


[Site "https://www.chess.com"]

[Event "Titled Tuesday Blitz May 10 Early 2022"]
[White "Friedel, Tom"]
[Black "Chernomordik, Pavel"]
[WhiteFideId "2002108"]
[BlackFideId "2804530"]
[WhiteElo "2326"]
[BlackElo "2220"]
[Result "1-0"]
[Round "07"]
[TimeControl "180+1"]
[Date "2022.05.11"]
[WhiteClock "0:00:03"]
[BlackClock "0:00:01"]

1. e4 {[%clk 0:03:00]}  g6 {[%clk 0:02:59]} 2. d4 {[%clk 0:03:00]}  Bg7 {[%clk 0:02:59]} 3. Nc3 {[%clk 0:03:00]}  d6 {[%clk 0:02:59]} 4. Be3 {[%clk 0:03:00]}  a6 {[%clk 0:02:59]} 5. Qd2 {[%clk 0:03:00]}  b5 {[%clk 0:02:58]} 6. Nge2 {[%clk 0:03:00]}  Bb7 {[%clk 0:02:58]} 7. a3 {[%clk 0:02:59]}  Nd7 {[%clk 0:02:56]} 8. g3 {[%clk 0:02:52]}  h5 {[%clk 0:02:50]} 9. h3 {[%clk 0:02:46]}  c5 {[%clk 0:02:45]} 10. Bg2 {[%clk 0:02:45]}  Qc7 {[%clk 0:02:44]} 11. O-O {[%clk 0:02:35]}  Ngf6 {[%clk 0:02:40]} 12. f4 {[%clk 0:02:24]}  b4 {[%clk 0:02:39]} 13. Nd5 {[%clk 0:02:14]}  Nxd5 {[%clk 0:02:38]} 14. exd5 {[%clk 0:02:14]}  a5 {[%clk 0:02:22]} 15. Rae1 {[%clk 0:01:52]}  bxa3 {[%clk 0:02:15]} 16. bxa3 {[%clk 0:01:53]}  c4 {[%clk 0:02:14]} 17. f5 {[%clk 0:01:48]}  gxf5 {[%clk 0:02:03]} 18. Rxf5 {[%clk 0:01:43]}  Nf6 {[%clk 0:02:03]} 19. Nc3 {[%clk 0:01:06]}  Qd7 {[%clk 0:01:56]} 20. Rf2 {[%clk 0:01:03]}  O-O-O {[%clk 0:01:51]} 21. Rb1 {[%clk 0:01:00]}  Rhg8 {[%clk 0:01:33]} 22. Qe2 {[%clk 0:00:59]}  Ba6 {[%clk 0:01:30]} 23. Rb6 {[%clk 0:00:55]}  Qa7 {[%clk 0:01:29]} 24. Rc6+ {[%clk 0:00:54]}  Kb8 {[%clk 0:01:28]} 25. Rf1 {[%clk 0:00:48]}  Bf8 {[%clk 0:01:21]} 26. Rb1+ {[%clk 0:00:47]}  Ka8 {[%clk 0:01:21]} 27. Nb5 {[%clk 0:00:41]}  Bxb5 {[%clk 0:01:20]} 28. Rxb5 {[%clk 0:00:42]}  Rb8 {[%clk 0:01:18]} 29. Qxc4 {[%clk 0:00:38]}  Nd7 {[%clk 0:01:01]} 30. Rc7 {[%clk 0:00:30]}  Qa6 {[%clk 0:01:00]} 31. Rxb8+ {[%clk 0:00:19]}  Nxb8 {[%clk 0:00:59]} 32. Qxa6+ {[%clk 0:00:13]}  Nxa6 {[%clk 0:00:58]} 33. Rc8+ {[%clk 0:00:14]}  Kb7 {[%clk 0:00:58]} 34. Re8 {[%clk 0:00:15]}  Rxg3 {[%clk 0:00:57]} 35. Kf2 {[%clk 0:00:12]}  Rxe3 {[%clk 0:00:45]} 36. Kxe3 {[%clk 0:00:11]}  Bh6+ {[%clk 0:00:45]} 37. Kd3 {[%clk 0:00:12]}  Bg5 {[%clk 0:00:43]} 38. Rf8 {[%clk 0:00:12]}  Bf6 {[%clk 0:00:37]} 39. Rxf7 {[%clk 0:00:12]}  h4 {[%clk 0:00:36]} 40. Be4 {[%clk 0:00:11]}  Nc7 {[%clk 0:00:35]} 41. c4 {[%clk 0:00:11]}  Kb6 {[%clk 0:00:34]} 42. Rf8 {[%clk 0:00:10]}  Na6 {[%clk 0:00:23]} 43. Ra8 {[%clk 0:00:06]}  Nc7 {[%clk 0:00:21]} 44. Rb8+ {[%clk 0:00:05]}  Ka7 {[%clk 0:00:20]} 45. Rb1 {[%clk 0:00:06]}  Na6 {[%clk 0:00:18]} 46. Bf5 {[%clk 0:00:03]}  Ka8 {[%clk 0:00:16]} 47. Bc8 {[%clk 0:00:03]}  Nc7 {[%clk 0:00:14]} 48. Bb7+ {[%clk 0:00:03]}  Ka7 {[%clk 0:00:14]} 49. Bc6 {[%clk 0:00:04]}  Na6 {[%clk 0:00:01]} 50. Rb7+ {[%clk 0:00:03]} 1-0


[Site "https://www.chess.com"]